fUSD/lending_fUSD_20250225
["ID","MTS","AMOUNT","RATE_DAILY","PERIOD"]
[354468424,1740520246844,-500.0,0.00049315,120]
[354468425,1740520246854,-98.93696684,0.00049315,120]
[354468426,1740520247371,-342.0,0.00048999,7]
[354468427,1740520247380,-401.06303316,0.00049315,120]
[354468428,1740520247389,-96.34907759,0.00049315,120]
[354468429,1740520247401,-403.65092241,0.00049315,120]
[354468430,1740520247410,-1351.49,0.00049315,120]
[354468431,1740520247419,-500.0,0.00049315,120]
[354468432,1740520247428,-500.0,0.00049315,120]
[354468433,1740520247439,-1234.52,0.00049315,120]
[354468434,1740520247448,-500.0,0.00049315,120]
[354468435,1740520247457,-1284.78,0.00049315,120]
[354468436,1740520247466,-1050.74,0.00049315,120]
[354468437,1740520247476,-500.0,0.00049315,120]
[354468438,1740520247485,-500.0,0.00049315,120]
[354468439,1740520247494,-500.0,0.00049315,120]
[354468440,1740520247503,-89.9852114,0.00049315,120]
[354468441,1740520247515,-677.1547886,0.00049315,120]
[354468442,1740520247525,-688.5,0.00049315,120]
[354468443,1740520247534,-500.0,0.00049315,120]
[354468444,1740520247543,-500.0,0.00049315,120]
[354468445,1740520247552,-500.0,0.00049315,120]
[354468446,1740520247561,-500.0,0.00049315,120]
[354468447,1740520247571,-1760.18,0.00049315,120]
[354468448,1740520247581,-500.0,0.00049315,120]
[354468449,1740520247590,-1274.88,0.00049315,120]
[354468450,1740520247599,-1733.6,0.00049315,120]
[354468451,1740520247608,-500.0,0.00049315,120]
[354468452,1740520247618,-1693.67,0.00049315,120]
[354468453,1740520247627,-500.0,0.00049315,120]
[354468454,1740520247636,-183.29837793,0.00049315,120]
[354468455,1740520247648,-316.70162207,0.00049315,120]
[354468456,1740520247657,-500.0,0.00049315,120]
[354468457,1740520247667,-116.51319039,0.00049315,120]
[354468458,1740520247677,-500.0,0.00049315,120]
[354468459,1740520247690,-835.85680961,0.00049315,120]
[354468460,1740520247699,-494.18102837,0.00049315,120]
[354468461,1740520247714,-5.81897163,0.00049315,120]
[354468462,1740520247724,-613.09,0.00049315,120]
[354468463,1740520247733,-500.0,0.00049315,120]
[354468464,1740520247742,-500.0,0.00049315,120]
[354468465,1740520247752,-1327.56,0.00049315,120]
[354468466,1740520247762,-337.35949622,0.00049315,120]
[354468467,1740520247773,-795.00050378,0.00049315,120]
[354468468,1740520247783,-500.0,0.00049315,120]
[354468469,1740520247792,-500.0,0.00049315,120]
[354468470,1740520247801,-4.99949622,0.00049315,120]
[354468471,1740520247813,-495.00050378,0.00049315,120]
[354468472,1740520247821,-500.0,0.00049315,120]
[354468473,1740520247830,-291.56801856,0.00049315,120]
[354468474,1740520247842,-474.79198144,0.00049315,120]
[354468475,1740520247851,-1629.58,0.00049315,120]
[354468476,1740520247860,-500.0,0.00049315,120]
[354468477,1740520247870,-500.0,0.00049315,120]
[354468478,1740520247879,-500.0,0.00049315,120]
[354468479,1740520247888,-500.0,0.00049315,120]
[354468480,1740520247897,-500.0,0.00049315,120]
[354468481,1740520247906,-1654.49,0.00049315,120]
[354468482,1740520247915,-500.0,0.00049315,120]
[354468483,1740520247925,-500.0,0.00049315,120]
[354468484,1740520247934,-500.0,0.00049315,120]
[354468485,1740520247943,-968.18,0.00049315,120]
[354468486,1740520247953,-500.0,0.00049315,120]
[354468487,1740520247962,-500.0,0.00049315,120]
[354468488,1740520247973,-500.0,0.00049315,120]
[354468489,1740520247984,-500.0,0.00049315,120]
[354468490,1740520247993,-500.0,0.00049315,120]
[354468491,1740520248002,-1066.45,0.00049315,120]
[354468492,1740520248011,-500.0,0.00049315,120]
[354468493,1740520248023,-920.32,0.00049315,120]
[354468494,1740520248032,-500.0,0.00049315,120]
[354468495,1740520248042,-500.0,0.00049315,120]
[354468496,1740520248051,-311.18801866,0.00049315,120]
[354468497,1740520248065,-500.0,0.00049315,120]
[354468498,1740520248076,-831.35198134,0.00049315,120]
[354468499,1740520248085,-602.81,0.00049315,120]
[354468500,1740520248095,-500.0,0.00049315,120]
[354468501,1740520248104,-500.0,0.00049315,120]
[354468502,1740520248113,-2375.8,0.00049315,120]
[354468503,1740520248123,-500.0,0.00049315,120]
[354468504,1740520248132,-380.03278048,0.00049315,120]
[354468505,1740520248141,-500.0,0.00049315,120]
[354468506,1740520248151,-500.0,0.00049315,120]
[354468507,1740520248160,-1265.36,0.00049315,120]
[354468508,1740520248170,-500.0,0.00049315,120]
[354468509,1740520248179,-500.0,0.00049315,120]
[354468510,1740520248188,-500.0,0.00049315,120]
[354468511,1740520248198,-500.0,0.00049315,120]
[354468512,1740520248208,-500.0,0.00049315,120]
[354468513,1740520248217,-500.0,0.00049315,120]
[354468514,1740520248227,-500.0,0.00049315,120]
[354468515,1740520248236,-500.0,0.00049315,120]
[354468516,1740520248245,-500.0,0.00049315,120]
[354468517,1740520248254,-514.97,0.00049315,120]
[354468518,1740520248263,-500.0,0.00049315,120]
[354468519,1740520248274,-500.0,0.00049315,120]
[354468520,1740520248283,-1122.11,0.00049315,120]
[354468521,1740520248292,-500.0,0.00049315,120]
[354468522,1740520248302,-1202.66,0.00049315,120]
[354468523,1740520248311,-500.0,0.00049315,30]
[354468524,1740520248320,-710.59,0.00049315,120]
[354468525,1740520248330,-500.0,0.00049315,120]
[354468526,1740520248339,-500.0,0.00049315,120]
[354468527,1740520248348,-669.37,0.00049315,120]
[354468528,1740520248358,-500.0,0.00049315,120]
[354468529,1740520248367,-500.0,0.00049315,120]
[354468530,1740520248377,-1156.2,0.00049315,120]
[354468531,1740520248387,-500.0,0.00049315,120]
[354468532,1740520248400,-1968.78,0.00049315,120]
[354468533,1740520248411,-500.0,0.00049315,120]
[354468534,1740520248421,-500.0,0.00049315,120]
[354468535,1740520248430,-1596.67,0.00049315,120]
[354468536,1740520248441,-794.26,0.00049315,120]
[354468537,1740520248451,-500.0,0.00049315,120]
[354468538,1740520248460,-500.0,0.00049315,120]
[354468539,1740520248469,-515.93488396,0.00049315,120]
[354468540,1740520248479,-500.0,0.00049315,120]
[354468541,1740520248490,-500.0,0.00049315,120]
[354468542,1740520248499,-500.0,0.00049315,120]
[354468543,1740520248509,-1261.32,0.00049315,120]
[354468544,1740520248519,-1408.1,0.00049315,120]
[354468545,1740520248528,-602.56,0.00049315,120]
[354468546,1740520248538,-500.0,0.00049315,120]
[354468547,1740520248547,-689.68,0.00049315,120]
[354468548,1740520248557,-895.57,0.00049315,120]
[354468549,1740520248567,-500.0,0.00049315,120]
[354468550,1740520248577,-882.31,0.00049315,120]
[354468551,1740520248586,-500.0,0.00049315,120]
[354468552,1740520248596,-1180.99,0.00049315,120]
[354468553,1740520248606,-925.12,0.00049315,120]
[354468554,1740520248616,-644.65,0.00049315,120]
[354468555,1740520248625,-500.0,0.00049315,120]
[354468556,1740520248635,-500.0,0.00049315,120]
[354468557,1740520248644,-500.0,0.00049315,120]
[354468558,1740520248654,-500.0,0.00049315,120]
[354468559,1740520248664,-607.03817658,0.00049315,120]
[354468560,1740520248674,-500.0,0.00049315,120]
[354468561,1740520248684,-500.0,0.00049315,120]
[354468562,1740520248696,-800.15,0.00049315,120]
[354468563,1740520248706,-616.04720105,0.00049315,120]
[354468564,1740520248715,-500.0,0.00049315,120]
[354468565,1740520248725,-520.50772788,0.00049315,120]
[354468566,1740520248735,-1077.05,0.00049315,120]
[354468567,1740520248745,-500.0,0.00049315,120]
[354468568,1740520248754,-500.0,0.00049315,120]
[354468569,1740520248764,-500.0,0.00049315,120]
[354468570,1740520248773,-500.0,0.00049315,120]
[354468571,1740520248783,-1135.27,0.00049315,120]
[354468572,1740520248792,-772.39,0.00049315,120]
[354468573,1740520248802,-2104.91,0.00049315,120]
[354468574,1740520248811,-500.0,0.00049315,7]
[354468575,1740520248821,-596.25,0.00049315,120]
[354468576,1740520248830,-504.70848511,0.00049315,120]
[354468577,1740520248839,-1070.58,0.00049315,120]
[354468578,1740520248848,-500.0,0.00049315,120]
[354468579,1740520248858,-1276.49,0.00049315,120]
[354468580,1740520248867,-500.0,0.00049315,120]
[354468581,1740520248876,-500.0,0.00049315,120]
[354468582,1740520248886,-1572.2,0.00049315,120]
[354468583,1740520248895,-500.0,0.00049315,120]
[354468584,1740520248905,-500.0,0.00049315,120]
[354468585,1740520248914,-500.0,0.00049315,120]
[354468586,1740520248924,-500.0,0.00049315,120]
[354468587,1740520248934,-500.0,0.00049315,120]
[354468588,1740520248946,-500.0,0.00049315,120]
[354468589,1740520248956,-510.64,0.00049315,120]
[354468590,1740520248966,-500.0,0.00049315,120]
[354468591,1740520248980,-513.24,0.00049315,120]
[354468592,1740520248990,-500.0,0.00049315,120]
[354468593,1740520249000,-500.0,0.00049315,120]
[354468594,1740520249010,-500.0,0.00049315,120]
[354468595,1740520249021,-500.0,0.00049315,120]
[354468596,1740520249030,-500.0,0.00049315,120]
[354468597,1740520249040,-500.0,0.00049315,120]
[354468598,1740520249049,-3075.04,0.00049315,120]
[354468599,1740520249062,-2454.29,0.00049315,120]
[354468600,1740520249071,-541.02032688,0.00049315,120]
[354468601,1740520249080,-500.0,0.00049315,120]
[354468602,1740520249090,-1145.59,0.00049315,120]
[354468603,1740520249100,-796.5,0.00049315,120]
[354468604,1740520249109,-500.0,0.00049315,120]
[354468605,1740520249118,-1161.02,0.00049315,120]
[354468606,1740520249127,-730.4,0.00049315,120]
[354468607,1740520249137,-500.0,0.00049315,120]
[354468608,1740520249147,-1470.61,0.00049315,120]
[354468609,1740520249156,-500.0,0.00049315,120]
[354468610,1740520249166,-500.0,0.00049315,120]
[354468611,1740520249176,-500.0,0.00049315,120]
[354468612,1740520249185,-500.0,0.00049315,120]
[354468613,1740520249196,-500.0,0.00049315,120]
[354468614,1740520249207,-500.0,0.00049315,120]
[354468615,1740520249217,-500.0,0.00049315,120]
[354468616,1740520249227,-500.0,0.00049315,120]
[354468617,1740520249237,-500.0,0.00049315,120]
[354468618,1740520249247,-823.67,0.00049315,120]
[354468619,1740520249257,-886.9,0.00049315,120]
[354468620,1740520249267,-1960.8,0.00049315,120]
[354468621,1740520249276,-500.0,0.00049315,120]
[354468622,1740520249286,-976.38,0.00049315,120]
[354468623,1740520249296,-621.83,0.00049315,120]
[354468624,1740520249306,-500.0,0.00049315,120]
[354468625,1740520249316,-500.0,0.00049315,120]
[354468626,1740520249326,-500.0,0.00049315,120]
[354468627,1740520249335,-694.45,0.00049315,120]
[354468628,1740520249345,-500.0,0.00049315,120]
[354468629,1740520249355,-500.0,0.00049315,120]
[354468630,1740520249365,-1596.93,0.00049315,120]
[354468631,1740520249375,-469.20042357,0.00049315,120]
[354468632,1740520249385,-846.2,0.00049315,120]
[354468633,1740520249395,-843.05,0.00049315,120]
[354468634,1740520249404,-507.27325257,0.00049315,120]
[354468635,1740520249414,-650.7,0.00049315,120]
[354468636,1740520249424,-500.0,0.00049315,120]
[354468637,1740520249433,-500.0,0.00049315,120]
[354468638,1740520249446,-500.0,0.00049315,120]
[354468639,1740520249456,-2700.43,0.00049315,120]
[354468640,1740520249466,-484.75002034,0.00049315,120]
[354468641,1740520249475,-500.0,0.00049315,120]
[354468642,1740520249485,-500.0,0.00049315,120]
[354468643,1740520249494,-668.68,0.00049315,120]
[354468644,1740520249504,-1052.08,0.00049315,120]
[354468645,1740520249514,-1252.86,0.00049315,120]
[354468646,1740520249524,-500.0,0.00049315,120]
[354468647,1740520249533,-811.7,0.00049315,120]
[354468648,1740520249543,-500.0,0.00049315,120]
[354468649,1740520249553,-500.0,0.00049315,120]
[354468650,1740520249563,-500.0,0.00049315,120]
[354468651,1740520249573,-2759.8,0.00049315,120]
[354468652,1740520249583,-500.0,0.00049315,120]
[354468653,1740520249593,-500.0,0.00049315,120]
[354468654,1740520249604,-500.0,0.00049315,120]
[354468655,1740520249613,-500.0,0.00049315,120]
[354468656,1740520249623,-619.21,0.00049315,120]
[354468657,1740520249633,-500.0,0.00049315,120]
[354468658,1740520249643,-1101.72,0.00049315,120]
[354468659,1740520249654,-500.0,0.00049315,120]
[354468660,1740520249664,-500.0,0.00049315,120]
[354468661,1740520249674,-500.0,0.00049315,120]
[354468662,1740520249684,-500.0,0.00049315,120]
[354468663,1740520249695,-500.0,0.00049315,120]
[354468664,1740520249705,-1764.89,0.00049315,120]
[354468665,1740520249715,-500.0,0.00049315,120]
[354468666,1740520249724,-500.0,0.00049315,120]
[354468667,1740520249734,-1965.6,0.00049315,120]
[354468668,1740520249744,-4224.95,0.00049315,120]
[354468669,1740520249753,-500.0,0.00049315,120]
[354468670,1740520249763,-594.66,0.00049315,120]
[354468671,1740520249773,-500.0,0.00049315,120]
[354468672,1740520249783,-780.31,0.00049315,120]
[354468673,1740520249793,-500.0,0.00049315,120]
[354468674,1740520249803,-500.0,0.00049315,120]
[354468675,1740520249813,-500.0,0.00049315,120]
[354468676,1740520249823,-1469.41,0.00049315,120]
[354468677,1740520249833,-500.0,0.00049315,120]
[354468678,1740520249842,-500.0,0.00049315,120]
[354468679,1740520249852,-1698.91,0.00049315,120]
[354468680,1740520249862,-500.0,0.00049315,120]
[354468681,1740520249872,-1947.8,0.00049315,120]
[354468682,1740520249881,-500.0,0.00049315,120]
[354468683,1740520249892,-1626.59,0.00049315,120]
[354468684,1740520249902,-1480.79,0.00049315,120]
[354468685,1740520249911,-587.78,0.00049315,120]
[354468686,1740520249921,-2473.38,0.00049315,120]
[354468687,1740520249931,-500.0,0.00049315,120]
[354468688,1740520249944,-500.0,0.00049315,120]
[354468689,1740520249954,-500.0,0.00049315,120]
[354468690,1740520249964,-500.0,0.00049315,120]
[354468691,1740520249975,-500.0,0.00049315,120]
[354468692,1740520249988,-500.0,0.00049315,120]
[354468693,1740520249998,-500.0,0.00049315,120]
[354468694,1740520250008,-500.0,0.00049315,120]
[354468695,1740520250020,-500.0,0.00049315,120]
[354468696,1740520250030,-610.48,0.00049315,120]
[354468697,1740520250040,-540.23337829,0.00049315,120]
[354468698,1740520250050,-500.0,0.00049315,120]
[354468699,1740520250061,-500.0,0.00049315,120]
[354468700,1740520250072,-1240.47,0.00049315,7]
[354468701,1740520250082,-500.0,0.00049315,120]
[354468702,1740520250092,-6355.41,0.00049315,120]
[354468703,1740520250102,-2058.89,0.00049315,120]
[354468704,1740520250112,-500.0,0.00049315,120]
[354468705,1740520250122,-500.0,0.00049315,120]
[354468706,1740520250131,-150.0,0.00049315,120]
[354468707,1740520250141,-500.0,0.00049315,120]
[354468708,1740520250150,-2931.74,0.00049315,120]
[354468709,1740520250160,-631.42,0.00049315,120]
[354468710,1740520250171,-500.0,0.00049315,120]
[354468711,1740520250180,-617.71290557,0.00049315,120]
[354468712,1740520250191,-4739.29,0.00049315,120]
[354468713,1740520250202,-500.0,0.00049315,120]
[354468714,1740520250212,-500.0,0.00049315,120]
[354468715,1740520250223,-500.0,0.00049315,120]
[354468716,1740520250233,-500.0,0.00049315,120]
[354468717,1740520250243,-1378.38,0.00049315,120]
[354468718,1740520250253,-500.0,0.00049315,120]
[354468719,1740520250263,-1782.04,0.00049315,120]
[354468720,1740520250273,-653.42,0.00049315,120]
[354468721,1740520250283,-912.07,0.00049315,120]
[354468722,1740520250292,-1751.94,0.00049315,120]
[354468723,1740520250302,-500.0,0.00049315,120]
[354468724,1740520250312,-500.0,0.00049315,120]
[354468725,1740520250321,-1439.07,0.00049315,120]
[354468726,1740520250331,-500.0,0.00049315,120]
[354468727,1740520250342,-2000.0,0.00049315,120]
[354468728,1740520250352,-500.0,0.00049315,120]
[354468729,1740520250363,-730.5,0.00049315,120]
[354468730,1740520250372,-500.0,0.00049315,120]
[354468731,1740520250382,-500.0,0.00049315,120]
[354468732,1740520250392,-500.0,0.00049315,120]
[354468733,1740520250403,-500.0,0.00049315,120]
[354468734,1740520250412,-1117.49,0.00049315,120]
[354468735,1740520250423,-2667.13,0.00049315,120]
[354468736,1740520250433,-1086.95,0.00049315,120]
[354468737,1740520250444,-2754.65,0.00049315,120]
[354468738,1740520250454,-168.389397,0.00049315,120]
[354468739,1740520250465,-1574.54,0.00049315,120]
[354468740,1740520250476,-500.0,0.00049315,120]
[354468741,1740520250487,-500.0,0.00049315,120]
[354468742,1740520250497,-550.64,0.00049315,120]
[354468743,1740520250507,-500.0,0.00049315,120]
[354468744,1740520250516,-2500.51,0.00049315,120]
[354468745,1740520250526,-500.0,0.00049315,120]
[354468746,1740520250536,-593.45,0.00049315,120]
[354468747,1740520250546,-1866.8,0.00049315,120]
[354468748,1740520250556,-1258.72,0.00049315,120]
[354468749,1740520250566,-1087.38,0.00049315,120]
[354468750,1740520250576,-500.0,0.00049315,120]
[354468751,1740520250586,-2244.67,0.00049315,120]
[354468752,1740520250596,-500.0,0.00049315,120]
[354468753,1740520250606,-948.47,0.00049315,120]
[354468754,1740520250615,-3042.5,0.00049315,120]
[354468755,1740520250625,-500.0,0.00049315,120]
[354468756,1740520250636,-500.0,0.00049315,120]
[354468757,1740520250645,-1252.77,0.00049315,120]
[354468758,1740520250655,-500.0,0.00049315,120]
[354468759,1740520250665,-549.95,0.00049315,120]
[354468760,1740520250676,-500.0,0.00049315,120]
[354468761,1740520250686,-155.382783,0.00049315,120]
[354468762,1740520250697,-500.0,0.00049315,120]
[354468763,1740520250707,-1643.13,0.00049315,120]
[354468764,1740520250718,-500.0,0.00049315,120]
[354468765,1740520250729,-3002.07,0.00049315,120]
[354468766,1740520250739,-500.0,0.00049315,120]
[354468767,1740520250749,-500.0,0.00049315,120]
[354468768,1740520250759,-1152.43,0.00049315,120]
[354468769,1740520250769,-500.0,0.00049315,120]
[354468770,1740520250780,-500.0,0.00049315,120]
[354468771,1740520250790,-500.0,0.00049315,120]
[354468772,1740520250800,-500.0,0.00049315,120]
[354468773,1740520250809,-900.01,0.00049315,120]
[354468774,1740520250818,-1649.78,0.00049315,120]
[354468775,1740520250828,-1295.2,0.00049315,120]
[354468776,1740520250838,-500.0,0.00049315,120]
[354468777,1740520250848,-609.54,0.00049315,120]
[354468778,1740520250858,-3728.36,0.00049315,120]
[354468779,1740520250868,-500.0,0.00049315,120]
[354468780,1740520250878,-500.0,0.00049315,120]
[354468781,1740520250887,-1669.63,0.00049315,120]
[354468782,1740520250898,-500.0,0.00049315,120]
[354468783,1740520250907,-500.0,0.00049315,120]
[354468784,1740520250917,-500.0,0.00049315,120]
[354468785,1740520250928,-1883.38,0.00049315,120]
[354468786,1740520250938,-500.0,0.00049315,120]
[354468787,1740520250950,-798.38,0.00049315,120]
[354468788,1740520250960,-609.66,0.00049315,120]
[354468789,1740520250972,-500.0,0.00049315,120]
[354468790,1740520250983,-500.0,0.00049315,120]
[354468791,1740520250993,-1511.47,0.00049315,120]
[354468792,1740520251003,-797.58,0.00049315,120]
[354468793,1740520251015,-500.0,0.00049315,120]
[354468794,1740520251025,-2142.0,0.00049315,120]
[354468795,1740520251035,-867.01,0.00049315,120]
[354468796,1740520251045,-500.0,0.00049315,120]
[354468797,1740520251057,-500.0,0.00049315,120]
[354468798,1740520251069,-624.964603,0.00049315,120]
[354468799,1740520251079,-519.74,0.00049315,120]
[354468800,1740520251090,-500.0,0.00049315,120]
[354468801,1740520251100,-1620.82,0.00049315,120]
[354468802,1740520251110,-2103.24,0.00049315,120]
[354468803,1740520251119,-2879.3,0.00049315,120]
[354468804,1740520251129,-500.0,0.00049315,120]
[354468805,1740520251139,-1092.94,0.00049315,120]
[354468806,1740520251149,-500.0,0.00049315,120]
[354468807,1740520251159,-500.0,0.00049315,120]
[354468808,1740520251169,-500.0,0.00049315,90]
[354468809,1740520251179,-374.44977966,0.00049315,120]
[354468810,1740520251189,-500.0,0.00049315,120]
[354468811,1740520251201,-4508.51,0.00049315,120]
[354468812,1740520251211,-500.0,0.00049315,120]
[354468813,1740520251221,-500.0,0.00049315,120]
[354468814,1740520251232,-3585.17,0.00049315,120]
[354468815,1740520251242,-500.0,0.00049315,120]
[354468816,1740520251252,-881.86,0.00049315,120]
[354468817,1740520251262,-565.65,0.00049315,120]
[354468818,1740520251273,-500.0,0.00049315,120]
[354468819,1740520251283,-500.0,0.00049315,120]
[354468820,1740520251293,-500.0,0.00049315,120]
[354468821,1740520251303,-765.67,0.00049315,120]
[354468822,1740520251314,-569.6,0.00049315,120]
[354468823,1740520251324,-2393.11,0.00049315,120]
[354468824,1740520251334,-535.94,0.00049315,120]
[354468825,1740520251344,-2493.82,0.00049315,120]
[354468826,1740520251354,-2991.46,0.00049315,120]
[354468827,1740520251365,-500.0,0.00049315,120]
[354468828,1740520251375,-4115.66,0.00049315,120]
[354468829,1740520251384,-500.0,0.00049315,120]
[354468830,1740520251395,-500.0,0.00049315,120]
[354468831,1740520251406,-500.0,0.00049315,120]
[354468832,1740520251416,-1141.45,0.00049315,120]
[354468833,1740520251427,-1290.07,0.00049315,120]
[354468834,1740520251437,-6170.41,0.00049315,120]
[354468835,1740520251448,-500.0,0.00049315,120]
[354468836,1740520251458,-1017.19,0.00049315,120]
[354468837,1740520251469,-500.0,0.00049315,120]
[354468838,1740520251479,-1162.96,0.00049315,120]
[354468839,1740520251489,-2792.14,0.00049315,120]
[354468840,1740520251500,-500.0,0.00049315,120]
[354468841,1740520251510,-1090.59,0.00049315,120]
[354468842,1740520251520,-2293.1,0.00049315,120]
[354468843,1740520251531,-1023.73,0.00049315,120]
[354468844,1740520251541,-500.0,0.00049315,120]
[354468845,1740520251551,-1101.0,0.00049315,120]
[354468846,1740520251561,-1317.28,0.00049315,120]
[354468847,1740520251572,-500.0,0.00049315,120]
[354468848,1740520251582,-3054.96,0.00049315,120]
[354468849,1740520251593,-598.06943932,0.00049315,120]
[354468850,1740520251602,-1957.93,0.00049315,120]
[354468851,1740520251612,-500.0,0.00049315,120]
[354468852,1740520251622,-500.0,0.00049315,120]
[354468853,1740520251633,-557.71,0.00049315,120]
[354468854,1740520251643,-500.0,0.00049315,120]
[354468855,1740520251652,-500.0,0.00049315,120]
[354468856,1740520251663,-500.0,0.00049315,120]
[354468857,1740520251673,-504.34068899,0.00049315,120]
[354468858,1740520251683,-2099.67,0.00049315,120]
[354468859,1740520251693,-4222.13,0.00049315,120]
[354468860,1740520251703,-1195.8,0.00049315,120]
[354468861,1740520251713,-500.0,0.00049315,120]
[354468862,1740520251723,-500.0,0.00049315,120]
[354468863,1740520251733,-648.47878526,0.00049315,120]
[354468864,1740520251743,-500.0,0.00049315,120]
[354468865,1740520251753,-1405.14822281,0.00049315,120]
[354468866,1740520252481,-1950.21177719,0.00049315,120]
[354468867,1740520252491,-500.0,0.00049315,120]
[354468868,1740520252501,-500.0,0.00049315,120]
[354468869,1740520252510,-3148.83,0.00049315,120]
[354468870,1740520252520,-1448.6,0.00049315,120]
[354468871,1740520252529,-500.0,0.00049315,120]
[354468872,1740520252539,-3432.98,0.00049315,120]
[354468873,1740520252548,-500.0,0.00049315,120]
[354468874,1740520252558,-3043.18,0.00049315,120]
[354468875,1740520252567,-500.0,0.00049315,120]
[354468876,1740520252577,-2629.25,0.00049315,120]
[354468877,1740520252587,-1425.23,0.00049315,120]
[354468878,1740520252596,-1645.22,0.00049315,120]
[354468879,1740520252606,-500.0,0.00049315,120]
[354468880,1740520252616,-500.0,0.00049315,120]
[354468881,1740520252626,-500.0,0.00049315,120]
[354468882,1740520252636,-500.0,0.00049315,120]
[354468883,1740520252646,-500.0,0.00049315,120]
[354468884,1740520252656,-500.0,0.00049315,30]
[354468885,1740520252665,-500.0,0.00049315,120]
[354468886,1740520252675,-500.0,0.00049315,120]
[354468887,1740520252684,-500.0,0.00049315,120]
[354468888,1740520252696,-3428.84,0.00049315,120]
[354468889,1740520252705,-500.0,0.00049315,120]
[354468890,1740520252715,-500.0,0.00049315,120]
[354468891,1740520252725,-3310.9,0.00049315,120]
[354468892,1740520252735,-500.0,0.00049315,120]
[354468893,1740520252745,-827.89,0.00049315,120]
[354468894,1740520252755,-500.0,0.00049315,120]
[354468895,1740520252764,-500.0,0.00049315,120]
[354468896,1740520252774,-4612.28,0.00049315,120]
[354468897,1740520252783,-500.0,0.00049315,120]
[354468898,1740520252793,-1971.27,0.00049315,120]
[354468899,1740520252803,-500.0,0.00049315,120]
[354468900,1740520252813,-500.0,0.00049315,120]
[354468901,1740520252823,-257.57444797,0.00049315,120]
[354468902,1740520252833,-1269.34,0.00049315,120]
[354468903,1740520252842,-500.0,0.00049315,120]
[354468904,1740520252851,-500.0,0.00049315,120]
[354468905,1740520252860,-500.0,0.00049315,120]
[354468906,1740520252869,-500.0,0.00049315,120]
[354468907,1740520252879,-3172.54,0.00049315,120]
[354468908,1740520252888,-2841.93,0.00049315,120]
[354468909,1740520252898,-500.0,0.00049315,120]
[354468910,1740520252908,-500.0,0.00049315,120]
[354468911,1740520252917,-500.0,0.00049315,120]
[354468912,1740520252926,-3080.29,0.00049315,120]
[354468913,1740520252936,-500.0,0.00049315,120]
[354468914,1740520252948,-3921.64,0.00049315,120]
[354468915,1740520252957,-500.0,0.00049315,120]
[354468916,1740520252967,-1302.85,0.00049315,120]
[354468917,1740520252980,-1292.38,0.00049315,120]
[354468918,1740520252989,-2073.38,0.00049315,120]
[354468919,1740520252999,-1693.24,0.00049315,120]
[354468920,1740520253008,-1000.0,0.00049315,120]
[354468921,1740520253019,-500.0,0.00049315,120]
[354468922,1740520253029,-500.0,0.00049315,120]
[354468923,1740520253038,-500.0,0.00049315,120]